[Event "1st SOA-GM Festival 2024"]
[Site "Bhubaneswar"]
[Date "2024.02.04"]
[Round "10.7"]
[White "Laxman, R.R."]
[Black "Ritviz, Parab"]
[Result "1-0"]
[ECO "E04"]
[WhiteElo "2338"]
[BlackElo "2391"]
[Annotator "RC"]
[PlyCount "103"]
[EventDate "2024.02.01"]
[EventType "swiss"]
[EventCountry "IND"]
[SourceTitle "playchess.com"]
[Source "ChessBase"]
[SourceQuality "1"]
[TimeControl "5400+30"]

1. d4 {[%emt 0:00:03]} Nf6 {[%emt 0:02:34]} 2. c4 {[%emt 0:00:08]} e6 {[%emt 0:00:25]} 3. g3 {[%emt 0:00:08]} d5 {[%emt 0:02:53]} 4. Nf3 {[%emt 0:00:07]} dxc4 {[%emt 0:00:14]} 5. Bg2 {[%emt 0:00:06]} a6 {[%emt 0:00:14]} 6. O-O {[%emt 0:01:23]} Nc6 {[%emt 0:00:20]} 7. Qd2 {[%emt 0:03:05]} Bb4 {[%emt 0:14:08]} 8. Qc2 {[%emt 0:01:01]} b5 {[%emt 0:06:28]} 9. Rd1 {[%emt 0:17:25]} Rb8 {[%emt 0:27:13]} 10. a3 {[%emt 0:11:38]} Be7 {[%emt 0:02:22]} 11. b3 {[%emt 0:01:02]} Na5 {[%emt 0:05:26]} 12. bxc4 {[%emt 0:00:02]} Bb7 {[%emt 0:05:50]} 13. cxb5 {[%emt 0:09:21]} axb5 {[%emt 0:01:10]} 14. Nc3 {[%emt 0:01:08]} O-O {[%emt 0:01:53]} 15. e4 {[%emt 0:00:08]} c6 {[%emt 0:16:31]} 16. h4 {[%emt 0:01:17]} h6 {[%emt 0:01:41]} 17. Ne5 {[%emt 0:00:16]} Nd7 {[%emt 0:02:43]} 18. Ng4 {[%emt 0:00:28]} Nc4 {[%emt 0:02:34]} 19. e5 {[%emt 0:06:08]} h5 {[%emt 0:04:39]} 20. Ne3 {[%emt 0:00:36]} c5 {[%emt 0:00:33]} 21. d5 {[%emt 0:02:24]} Ndxe5 {[%emt 0:00:03]} 22. dxe6 {[%emt 0:00:14]} Qe8 {[%emt 0:00:38]} 23. Nxc4 {[%emt 0:02:55]} Nxc4 {[%emt 0:00:26]} 24. Bxb7 {[%emt 0:00:06]} Rxb7 {[%emt 0:00:07]} 25. exf7+ {[%emt 0:04:53]} Qxf7 {[%emt 0:00:02]} 26. Ne4 {[%emt 0:00:13]} Bf6 {[%emt 0:01:40]} 27. Nxf6+ {[%emt 0:00:12]} Qxf6 {[%emt 0:00:02]} 28. Bg5 {[%emt 0:00:14]} Qb2 {[%emt 0:01:09]} 29. Qxb2 {[%emt 0:02:47]} Nxb2 {[%emt 0:00:02]} 30. Rd5 {[%emt 0:00:01]} c4 {[%emt 0:00:17]} 31. Be3 {[%emt 0:00:28]} Ra8 {[%emt 0:00:58]} 32. Bd4 {[%emt 0:00:37]} Nd3 {[%emt 0:00:38]} 33. Rb1 {[%emt 0:00:03]} Rxa3 {[%emt 0:00:24]} 34. Rdxb5 {[%emt 0:00:06]} Rd7 {[%emt 0:00:33]} 35. Be3 {[%emt 0:02:28]} c3 {[%emt 0:00:35]} 36. Rb8+ {[%emt 0:00:01]} Kf7 {[%emt 0:00:01]} 37. Rc8 {[%emt 0:00:19]} Ne5 {[%emt 0:01:00]} 38. Rc1 {[%emt 0:02:45]} Rd3 {[%emt 0:00:31]} 39. Rc7+ {[%emt 0:00:28]} Kg6 {[%emt 0:00:20]} 40. Rb1 {[%emt 0:02:14]} Kf5 {[%emt 0:00:40]} 41. Rc5 {[%emt 0:00:33]} Ke6 {[%emt 0:00:29]} 42. Rb6+ {[%emt 0:00:07]} Kf5 {[%emt 0:00:32]} 43. Rbb5 {[%emt 0:00:07]} Kg4 {[%emt 0:00:17]} 44. Kg2 {[%emt 0:00:11]} Rxe3 {[%emt 0:00:42]} 45. Rxe5 {[%emt 0:00:02]} Rxg3+ {[%emt 0:00:08]} 46. fxg3 {[%emt 0:00:18]} Ra2+ {[%emt 0:00:08]} 47. Kf1 {[%emt 0:00:19]} Rh2 {[%emt 0:01:15]} 48. Rec5 {[%emt 0:05:07]} c2 {[%emt 0:00:28]} 49. Rb4+ {[%emt 0:00:01]} Kh3 {[%emt 0:00:32]} 50. Rbc4 {[%emt 0:00:02]} Rh1+ {[%emt 0:00:31]} 51. Kf2 {[%emt 0:00:06]} g5 {[%emt 0:00:30]} 52. hxg5 {[%emt 0:00:13]} 1-0

[Event "1st SOA-GM Festival 2024"]
[Site "Bhubaneswar"]
[Date "2024.02.04"]
[Round "10.8"]
[White "Tologon tegin, Semetei"]
[Black "Soham Kamotra"]
[Result "0-1"]
[ECO "E48"]
[WhiteElo "2384"]
[BlackElo "2348"]
[Annotator "RC"]
[PlyCount "52"]
[EventDate "2024.02.01"]
[EventType "swiss"]
[EventCountry "IND"]
[SourceTitle "playchess.com"]
[Source "ChessBase"]
[SourceQuality "1"]
[TimeControl "5400+30"]

1. d4 {[%emt 0:00:02]} Nf6 {[%emt 0:00:05]} 2. c4 {[%emt 0:00:07]} e6 {[%emt 0:00:54]} 3. Nc3 {[%emt 0:00:14]} Bb4 {[%emt 0:00:07]} 4. e3 {[%emt 0:00:08]} O-O {[%emt 0:01:23]} 5. Bd3 {[%emt 0:00:09]} d5 {[%emt 0:00:11]} 6. cxd5 {[%emt 0:00:10]} exd5 {[%emt 0:00:06]} 7. Nge2 {[%emt 0:00:08]} Re8 {[%emt 0:01:27]} 8. O-O {[%emt 0:00:12]} b6 {[%emt 0:02:24]} 9. Bd2 {[%emt 0:00:24]} Bf8 {[%emt 0:00:32]} 10. Rc1 {[%emt 0:00:19]} Bb7 {[%emt 0:05:10]} 11. Nf4 {[%emt 0:04:23]} Nbd7 {[%emt 0:14:01]} 12. Qb3 {[%emt 0:03:36]} c5 {[%emt 0:08:56]} 13. Bb1 {[%emt 0:23:29]} g6 {[%emt 0:11:13]} 14. Ncxd5 {[%emt 0:33:05]} Nxd5 {[%emt 0:00:20]} 15. Nxd5 {[%emt 0:00:03]} Qg5 {[%emt 0:03:39]} 16. Nf4 {[%emt 0:00:57]} Bd6 {[%emt 0:00:09]} 17. g3 {[%emt 0:00:27]} Bxf4 {[%emt 0:06:34]} 18. exf4 {[%emt 0:00:17]} Qh5 {[%emt 0:00:10]} 19. Rfe1 {[%emt 0:09:19]} cxd4 {[%emt 0:05:44]} 20. Bb4 {[%emt 0:01:42]} Nf6 {[%emt 0:05:46]} 21. Be7 {[%emt 0:01:37]} Qh3 {[%emt 0:04:16]} 22. f3 {[%emt 0:00:29]} Ng4 {[%emt 0:00:19]} 23. Qc2 {[%emt 0:03:00]} Ne3 {[%emt 0:00:21]} 24. Rxe3 {[%emt 0:00:33]} dxe3 {[%emt 0:00:08]} 25. Bf6 {[%emt 0:00:55]} Rac8 {[%emt 0:00:15]} 26. Bc3 {[%emt 0:00:20]} Bxf3 {[%emt 0:00:26]} 0-1

[Event "1st SOA-GM Festival 2024"]
[Site "Bhubaneswar"]
[Date "2024.02.04"]
[Round "10.9"]
[White "Dhananjay S"]
[Black "Liyanage, Ranindu Dilshan"]
[Result "0-1"]
[ECO "A13"]
[WhiteElo "2151"]
[BlackElo "2366"]
[Annotator "RC"]
[PlyCount "84"]
[EventDate "2024.02.01"]
[EventType "swiss"]
[EventCountry "IND"]
[SourceTitle "playchess.com"]
[Source "ChessBase"]
[SourceQuality "1"]
[TimeControl "5400+30"]

1. c4 {[%emt 0:00:03]} e6 {[%emt 0:00:26]} 2. g3 {[%emt 0:00:05]} d5 {[%emt 0:00:22]} 3. Bg2 {[%emt 0:00:04]} Nf6 {[%emt 0:00:39]} 4. Nf3 {[%emt 0:00:03]} d4 {[%emt 0:01:45]} 5. e3 {[%emt 0:00:19]} c5 {[%emt 0:00:16]} 6. exd4 {[%emt 0:00:04]} cxd4 {[%emt 0:00:07]} 7. O-O {[%emt 0:00:04]} Nc6 {[%emt 0:00:30]} 8. d3 {[%emt 0:00:04]} Bd6 {[%emt 0:01:31]} 9. Bg5 {[%emt 0:00:24]} h6 {[%emt 0:01:12]} 10. Bxf6 {[%emt 0:00:05]} gxf6 {[%emt 0:00:06]} 11. Nbd2 {[%emt 0:10:01]} a5 {[%emt 0:02:47]} 12. Rc1 {[%emt 0:03:00]} Kf8 {[%emt 0:09:20]} 13. c5 {[%emt 0:02:34]} Be7 {[%emt 0:00:32]} 14. a3 {[%emt 0:06:13]} Kg7 {[%emt 0:08:15]} 15. Qa4 {[%emt 0:01:00]} Ra6 {[%emt 1:10:12]} 16. Nb3 {[%emt 0:14:54]} e5 {[%emt 0:00:00]} 17. Nbd2 {[%emt 0:02:25]} h5 {[%emt 0:00:00]} 18. Nc4 {[%emt 0:05:23]} Be6 {[%emt 0:00:00]} 19. Nfd2 {[%emt 0:01:25]} h4 {[%emt 0:00:00]} 20. Qb5 {[%emt 0:05:17]} Bd5 {[%emt 0:00:00]} 21. Nd6 {[%emt 0:20:26]} Bxg2 {[%emt 0:00:00]} 22. Kxg2 {[%emt 0:00:09]} Bxd6 {[%emt 0:00:00]} 23. Qxb7 {[%emt 0:01:55]} h3+ {[%emt 0:00:00]} 24. Kg1 {[%emt 0:00:21]} Qa8 {[%emt 0:00:00]} 25. Qxa8 {[%emt 0:00:46]} Rhxa8 {[%emt 0:00:00]} 26. cxd6 {[%emt 0:00:02]} Nd8 {[%emt 0:00:00]} 27. f4 {[%emt 0:01:51]} Rxd6 {[%emt 0:00:00]} 28. fxe5 {[%emt 0:00:04]} fxe5 {[%emt 0:00:00]} 29. Rc7 {[%emt 0:01:41]} Rb8 {[%emt 0:00:00]} 30. Nc4 {[%emt 0:05:47]} Rc6 {[%emt 0:00:00]} 31. Rfxf7+ {[%emt 0:04:48]} Nxf7 {[%emt 0:00:00]} 32. Rxc6 {[%emt 0:00:02]} Rb3 {[%emt 0:01:00]} 33. Rc7 {[%emt 0:00:34]} Kf6 {[%emt 0:00:18]} 34. Kf2 {[%emt 0:00:13]} a4 {[%emt 0:04:13]} 35. Ke2 {[%emt 0:01:07]} e4 {[%emt 0:03:45]} 36. Rc6+ {[%emt 0:08:38]} Ke7 {[%emt 0:00:17]} 37. Rg6 {[%emt 0:01:59]} Rxd3 {[%emt 0:00:53]} 38. Rg4 {[%emt 0:00:09]} Nd6 {[%emt 0:00:06]} 39. Nxd6 {[%emt 0:00:06]} Re3+ {[%emt 0:00:03]} 40. Kd2 {[%emt 0:03:41]} Kxd6 {[%emt 0:00:05]} 41. Rg6+ {[%emt 0:00:01]} Kd5 {[%emt 0:01:11]} 42. Rg5+ {[%emt 0:00:51]} Ke6 {[%emt 0:00:19]} 0-1

[Event "1st SOA-GM Festival 2024"]
[Site "Bhubaneswar"]
[Date "2024.02.04"]
[Round "10.10"]
[White "Tahbaz, Arash"]
[Black "Ajay Santhosh Parvathareddy"]
[Result "1-0"]
[ECO "B90"]
[WhiteElo "2425"]
[BlackElo "2148"]
[Annotator "RC"]
[PlyCount "89"]
[EventDate "2024.02.01"]
[EventType "swiss"]
[EventCountry "IND"]
[SourceTitle "playchess.com"]
[Source "ChessBase"]
[SourceQuality "1"]
[TimeControl "5400+30"]

1. e4 {[%emt 0:00:25]} c5 {[%emt 0:00:03]} 2. Nf3 {[%emt 0:00:45]} d6 {[%emt 0:00:06]} 3. d4 {[%emt 0:00:03]} cxd4 {[%emt 0:00:03]} 4. Nxd4 {[%emt 0:00:03]} Nf6 {[%emt 0:00:07]} 5. Nc3 {[%emt 0:00:04]} a6 {[%emt 0:00:03]} 6. f3 {[%emt 0:00:03]} e5 {[%emt 0:00:04]} 7. Nb3 {[%emt 0:00:03]} Be7 {[%emt 0:00:05]} 8. Be3 {[%emt 0:00:04]} Be6 {[%emt 0:00:04]} 9. Qd2 {[%emt 0:00:05]} h5 {[%emt 0:00:04]} 10. Nd5 {[%emt 0:00:03]} Nxd5 {[%emt 0:00:05]} 11. exd5 {[%emt 0:00:04]} Bf5 {[%emt 0:00:07]} 12. Be2 {[%emt 0:00:03]} Nd7 {[%emt 0:00:13]} 13. O-O {[%emt 0:00:10]} O-O {[%emt 0:02:14]} 14. Na5 {[%emt 0:00:04]} Qc7 {[%emt 0:02:29]} 15. c4 {[%emt 0:00:05]} Bg6 {[%emt 0:00:40]} 16. b4 {[%emt 0:00:05]} f5 {[%emt 0:00:27]} 17. Kh1 {[%emt 0:10:51]} f4 {[%emt 0:10:39]} 18. Bg1 {[%emt 0:00:03]} h4 {[%emt 0:00:12]} 19. Bd3 {[%emt 0:00:17]} e4 {[%emt 0:01:24]} 20. Bxe4 {[%emt 0:00:23]} Bxe4 {[%emt 0:00:07]} 21. fxe4 {[%emt 0:00:05]} Ne5 {[%emt 0:00:23]} 22. Rac1 {[%emt 0:04:21]} h3 {[%emt 0:10:45]} 23. gxh3 {[%emt 0:01:08]} Qd7 {[%emt 0:00:58]} 24. Bd4 {[%emt 0:01:41]} Qxh3 {[%emt 0:08:23]} 25. Bxe5 {[%emt 0:04:23]} dxe5 {[%emt 0:00:06]} 26. d6 {[%emt 0:06:54]} Bg5 {[%emt 0:00:15]} 27. Qg2 {[%emt 0:02:48]} Qxg2+ {[%emt 0:00:09]} 28. Kxg2 {[%emt 0:00:04]} f3+ {[%emt 0:00:06]} 29. Kf2 {[%emt 0:00:04]} b6 {[%emt 0:23:23]} 30. Nc6 {[%emt 0:02:54]} Rac8 {[%emt 0:00:06]} 31. Nxe5 {[%emt 0:07:58]} Bxc1 {[%emt 0:00:31]} 32. Rxc1 {[%emt 0:00:07]} Rce8 {[%emt 0:00:53]} 33. Ng6 {[%emt 0:27:06]} Rf6 {[%emt 0:01:37]} 34. Ne7+ {[%emt 0:00:10]} Kf7 {[%emt 0:00:10]} 35. e5 {[%emt 0:00:08]} Rh6 {[%emt 0:06:17]} 36. c5 {[%emt 0:03:55]} bxc5 {[%emt 0:00:46]} 37. bxc5 {[%emt 0:00:02]} Rxh2+ {[%emt 0:00:23]} 38. Kxf3 {[%emt 0:00:27]} Rh5 {[%emt 0:18:09]} 39. Ke4 {[%emt 0:02:52]} Ke6 {[%emt 0:03:03]} 40. Ng6 {[%emt 0:02:06]} Kf7 {[%emt 0:00:13]} 41. d7 {[%emt 0:00:13]} Rb8 {[%emt 0:00:11]} 42. c6 {[%emt 0:01:06]} Kxg6 {[%emt 0:00:29]} 43. c7 {[%emt 0:00:07]} Rb4+ {[%emt 0:00:39]} 44. Kd5 {[%emt 0:00:13]} Rb5+ {[%emt 0:00:06]} 45. Rc5 {[%emt 0:00:05]} 1-0

[Event "1st SOA-GM Festival 2024"]
[Site "Bhubaneswar"]
[Date "2024.02.04"]
[Round "10.11"]
[White "Nithin Babu"]
[Black "Audi Ameya"]
[Result "1-0"]
[ECO "B51"]
[WhiteElo "2177"]
[BlackElo "2385"]
[Annotator "RC"]
[PlyCount "135"]
[EventDate "2024.02.01"]
[EventType "swiss"]
[EventCountry "IND"]
[SourceTitle "playchess.com"]
[Source "ChessBase"]
[SourceQuality "1"]
[TimeControl "5400+30"]

1. e4 {[%emt 0:00:04]} c5 {[%emt 0:00:05]} 2. Nf3 {[%emt 0:00:05]} d6 {[%emt 0:00:03]} 3. Bb5+ {[%emt 0:00:14]} Nd7 {[%emt 0:00:06]} 4. c3 {[%emt 0:00:11]} Ngf6 {[%emt 0:01:04]} 5. Qe2 {[%emt 0:00:08]} a6 {[%emt 0:02:50]} 6. Ba4 {[%emt 0:00:07]} b5 {[%emt 0:08:32]} 7. Bc2 {[%emt 0:00:06]} Bb7 {[%emt 0:00:24]} 8. d4 {[%emt 0:01:45]} e6 {[%emt 0:00:27]} 9. O-O {[%emt 0:00:41]} Be7 {[%emt 0:00:32]} 10. Re1 {[%emt 0:01:45]} cxd4 {[%emt 0:10:23]} 11. cxd4 {[%emt 0:00:07]} Rc8 {[%emt 0:00:13]} 12. Bd3 {[%emt 0:02:38]} O-O {[%emt 0:00:49]} 13. Nbd2 {[%emt 0:02:25]} Nb8 {[%emt 0:06:26]} 14. Nb3 {[%emt 0:11:55]} d5 {[%emt 0:07:13]} 15. e5 {[%emt 0:00:19]} Ne4 {[%emt 0:00:04]} 16. Nfd2 {[%emt 0:04:56]} Qc7 {[%emt 0:23:37]} 17. Nxe4 {[%emt 0:06:04]} dxe4 {[%emt 0:00:03]} 18. Bxe4 {[%emt 0:00:08]} Bxe4 {[%emt 0:00:09]} 19. Qxe4 {[%emt 0:00:08]} Qc2 {[%emt 0:00:39]} 20. Qxc2 {[%emt 0:12:31]} Rxc2 {[%emt 0:00:04]} 21. Rb1 {[%emt 0:01:17]} Nc6 {[%emt 0:12:51]} 22. Be3 {[%emt 0:03:43]} Nb4 {[%emt 0:00:15]} 23. Rec1 {[%emt 0:06:21]} Rxc1+ {[%emt 0:00:40]} 24. Nxc1 {[%emt 0:03:31]} Rc8 {[%emt 0:00:06]} 25. a3 {[%emt 0:03:02]} Nc2 {[%emt 0:00:04]} 26. Nb3 {[%emt 0:04:50]} Nxe3 {[%emt 0:01:13]} 27. fxe3 {[%emt 0:00:22]} Bg5 {[%emt 0:00:19]} 28. Kf2 {[%emt 0:01:23]} Rc2+ {[%emt 0:00:04]} 29. Kf3 {[%emt 0:00:25]} Kf8 {[%emt 0:02:26]} 30. Nc5 {[%emt 0:04:19]} a5 {[%emt 0:04:24]} 31. Nb7 {[%emt 0:03:56]} Ke7 {[%emt 0:00:04]} 32. Nxa5 {[%emt 0:01:35]} f6 {[%emt 0:00:02]} 33. Nb3 {[%emt 0:05:15]} h5 {[%emt 0:00:17]} 34. exf6+ {[%emt 0:02:10]} gxf6 {[%emt 0:00:04]} 35. Nc5 {[%emt 0:05:13]} f5 {[%emt 0:01:03]} 36. b4 {[%emt 0:03:27]} Kd6 {[%emt 0:00:05]} 37. Rb3 {[%emt 0:02:23]} Kd5 {[%emt 0:03:21]} 38. a4 {[%emt 0:01:07]} bxa4 {[%emt 0:00:04]} 39. Nxa4 {[%emt 0:00:15]} Kc4 {[%emt 0:00:52]} 40. Rb2 {[%emt 0:05:30]} Rc1 {[%emt 0:00:04]} 41. b5 {[%emt 0:00:33]} Re1 {[%emt 0:00:03]} 42. b6 {[%emt 0:01:10]} Rxe3+ {[%emt 0:03:03]} 43. Kf2 {[%emt 0:00:01]} Ra3 {[%emt 0:00:06]} 44. b7 {[%emt 0:00:44]} Bf4 {[%emt 0:00:02]} 45. g3 {[%emt 0:02:57]} Bb8 {[%emt 0:00:35]} 46. Nc5 {[%emt 0:00:48]} Kxd4 {[%emt 0:00:16]} 47. Nd7 {[%emt 0:00:05]} Ba7 {[%emt 0:00:13]} 48. b8=Q {[%emt 0:01:51]} Bxb8 {[%emt 0:00:56]} 49. Nxb8 {[%emt 0:00:00]} e5 {[%emt 0:00:48]} 50. Rd2+ {[%emt 0:00:00]} Kc4 {[%emt 0:02:28]} 51. Nc6 {[%emt 0:00:00]} e4 {[%emt 0:00:01]} 52. Ne5+ {[%emt 0:00:28]} Kc3 {[%emt 0:00:04]} 53. Re2 {[%emt 0:00:20]} Kd4 {[%emt 0:00:05]} 54. Ng6 {[%emt 0:00:16]} Rb3 {[%emt 0:01:32]} 55. Rd2+ {[%emt 0:00:51]} Kc3 {[%emt 0:00:38]} 56. Ke3 {[%emt 0:00:37]} Kc4+ {[%emt 0:00:03]} 57. Ke2 {[%emt 0:00:07]} Ra3 {[%emt 0:01:03]} 58. Nh4 {[%emt 0:01:26]} f4 {[%emt 0:00:58]} 59. gxf4 {[%emt 0:00:17]} Rh3 {[%emt 0:00:03]} 60. Nf5 {[%emt 0:00:16]} Rxh2+ {[%emt 0:00:05]} 61. Ke3 {[%emt 0:00:08]} Rh1 {[%emt 0:01:59]} 62. Nd6+ {[%emt 0:00:28]} Kc5 {[%emt 0:00:38]} 63. Nxe4+ {[%emt 0:00:05]} Kc6 {[%emt 0:00:02]} 64. f5 {[%emt 0:00:20]} Rf1 {[%emt 0:01:30]} 65. f6 {[%emt 0:00:42]} Rf5 {[%emt 0:00:11]} 66. Rf2 {[%emt 0:00:22]} Rxf2 {[%emt 0:00:07]} 67. Kxf2 {[%emt 0:00:04]} Kd7 {[%emt 0:00:02]} 68. Ng5 {[%emt 0:00:26]} 1-0

[Event "1st SOA-GM Festival 2024"]
[Site "Bhubaneswar"]
[Date "2024.02.04"]
[Round "10.12"]
[White "John Veny Akkarakaran"]
[Black "Ayush Sharma"]
[Result "1-0"]
[ECO "B11"]
[WhiteElo "2112"]
[BlackElo "2378"]
[Annotator "RC"]
[PlyCount "91"]
[EventDate "2024.02.01"]
[EventType "swiss"]
[EventCountry "IND"]
[SourceTitle "playchess.com"]
[Source "ChessBase"]
[SourceQuality "1"]
[TimeControl "5400+30"]

1. e4 {[%emt 0:01:15]} c6 {[%emt 0:00:08]} 2. Nf3 {[%emt 1:30:15]} d5 {[%emt 0:00:07]} 3. Nc3 {[%emt 0:00:00]} Bg4 {[%emt 0:00:31]} 4. h3 {[%emt 0:00:00]} Bxf3 {[%emt 0:00:12]} 5. Qxf3 {[%emt 0:00:00]} e6 {[%emt 0:00:28]} 6. Be2 {[%emt 0:00:00]} Nf6 {[%emt 0:00:37]} 7. O-O {[%emt 0:00:00]} Be7 {[%emt 0:00:26]} 8. d3 {[%emt 0:00:00]} O-O {[%emt 0:00:17]} 9. g4 {[%emt 0:00:00]} Nbd7 {[%emt 0:00:55]} 10. g5 {[%emt 0:00:00]} Ne8 {[%emt 0:00:02]} 11. h4 {[%emt 0:00:00]} f6 {[%emt 0:01:09]} 12. Qh3 {[%emt 0:00:00]} d4 {[%emt 0:03:43]} 13. Qxe6+ {[%emt 0:00:00]} Kh8 {[%emt 0:00:15]} 14. Nd1 {[%emt 0:00:00]} fxg5 {[%emt 0:00:02]} 15. hxg5 {[%emt 0:00:00]} Bxg5 {[%emt 0:00:02]} 16. f4 {[%emt 0:00:00]} Bh6 {[%emt 0:02:22]} 17. Qh3 {[%emt 0:00:00]} Qc7 {[%emt 0:05:13]} 18. Kg2 {[%emt 0:00:00]} c5 {[%emt 0:05:09]} 19. c4 {[%emt 0:00:00]} dxc3 {[%emt 0:00:38]} 20. Nxc3 {[%emt 0:00:00]} Nb6 {[%emt 0:02:20]} 21. e5 {[%emt 0:00:00]} Rd8 {[%emt 0:01:03]} 22. Be3 {[%emt 0:00:00]} Qc6+ {[%emt 0:01:31]} 23. Qf3 {[%emt 0:00:00]} Nd5 {[%emt 0:00:17]} 24. Nxd5 {[%emt 0:00:00]} Rxd5 {[%emt 0:00:04]} 25. Qe4 {[%emt 0:00:00]} Nc7 {[%emt 0:06:20]} 26. Rac1 {[%emt 0:00:00]} Ne6 {[%emt 0:03:28]} 27. Kg1 {[%emt 0:00:00]} Qd7 {[%emt 0:09:00]} 28. Bg4 {[%emt 0:00:23]} Rd8 {[%emt 0:01:15]} 29. f5 {[%emt 0:04:31]} Bxe3+ {[%emt 0:00:28]} 30. Qxe3 {[%emt 0:00:01]} Nd4 {[%emt 0:00:05]} 31. Qe4 {[%emt 0:01:02]} Qe7 {[%emt 0:00:41]} 32. Rce1 {[%emt 0:01:46]} Nc6 {[%emt 0:03:22]} 33. f6 {[%emt 0:01:05]} gxf6 {[%emt 0:01:39]} 34. exf6 {[%emt 0:00:20]} Qf8 {[%emt 0:00:10]} 35. Rf5 {[%emt 0:01:49]} Rxd3 {[%emt 0:04:29]} 36. f7 {[%emt 0:00:16]} R3d4 {[%emt 0:01:30]} 37. Qf3 {[%emt 0:00:27]} Rd3 {[%emt 0:04:39]} 38. Qf4 {[%emt 0:00:36]} R3d4 {[%emt 0:01:48]} 39. Qg5 {[%emt 0:01:33]} R4d6 {[%emt 0:01:09]} 40. Bh5 {[%emt 0:00:42]} h6 {[%emt 0:01:02]} 41. Qh4 {[%emt 0:02:36]} Qg7+ {[%emt 0:02:29]} 42. Kh1 {[%emt 0:00:26]} Rf8 {[%emt 0:00:27]} 43. Rg1 {[%emt 0:00:37]} Qd4 {[%emt 0:00:42]} 44. Rg8+ {[%emt 0:00:31]} Rxg8 {[%emt 0:01:38]} 45. fxg8=Q+ {[%emt 0:00:06]} Kxg8 {[%emt 0:00:07]} 46. Qg3+ {[%emt 0:00:16]} 1-0

[Event "1st SOA-GM Festival 2024"]
[Site "Bhubaneswar"]
[Date "2024.02.04"]
[Round "10.13"]
[White "Rajesh, V A V"]
[Black "Frayna, Janelle Mae"]
[Result "1/2-1/2"]
[ECO "D36"]
[WhiteElo "2331"]
[BlackElo "2197"]
[Annotator "RC"]
[PlyCount "154"]
[EventDate "2024.02.01"]
[EventType "swiss"]
[EventCountry "IND"]
[SourceTitle "playchess.com"]
[Source "ChessBase"]
[SourceQuality "1"]
[TimeControl "5400+30"]

1. d4 {[%emt 0:00:15]} Nf6 {[%emt 0:00:30]} 2. c4 {[%emt 0:00:06]} e6 {[%emt 0:00:05]} 3. Nc3 {[%emt 0:00:19]} d5 {[%emt 0:00:58]} 4. Nf3 {[%emt 0:00:19]} a6 {[%emt 0:01:26]} 5. cxd5 {[%emt 0:00:18]} exd5 {[%emt 0:00:06]} 6. Bg5 {[%emt 0:00:06]} Be7 {[%emt 0:01:06]} 7. e3 {[%emt 0:00:21]} O-O {[%emt 0:01:04]} 8. Bd3 {[%emt 0:00:32]} h6 {[%emt 0:01:51]} 9. Bh4 {[%emt 0:02:47]} c6 {[%emt 0:00:12]} 10. O-O {[%emt 0:03:27]} Nbd7 {[%emt 0:03:42]} 11. Qc2 {[%emt 0:00:24]} Re8 {[%emt 0:00:11]} 12. Bg3 {[%emt 0:00:10]} Nf8 {[%emt 0:03:11]} 13. a3 {[%emt 0:01:12]} Nh5 {[%emt 0:08:22]} 14. Be5 {[%emt 0:01:07]} Bg4 {[%emt 0:01:36]} 15. Nd2 {[%emt 0:01:19]} f6 {[%emt 0:19:27]} 16. Bg3 {[%emt 0:00:12]} Nxg3 {[%emt 0:01:00]} 17. hxg3 {[%emt 0:00:08]} Be6 {[%emt 0:02:53]} 18. Nf3 {[%emt 0:01:29]} Rc8 {[%emt 0:03:52]} 19. e4 {[%emt 0:02:22]} Bf7 {[%emt 0:06:59]} 20. exd5 {[%emt 0:03:57]} cxd5 {[%emt 0:00:07]} 21. Nh4 {[%emt 0:00:07]} Ne6 {[%emt 0:00:29]} 22. Bh7+ {[%emt 0:03:40]} Kh8 {[%emt 0:00:08]} 23. Bg6 {[%emt 0:09:35]} Bxg6 {[%emt 0:02:10]} 24. Nxg6+ {[%emt 0:00:05]} Kg8 {[%emt 0:00:04]} 25. Rad1 {[%emt 0:01:16]} b5 {[%emt 0:08:03]} 26. Rfe1 {[%emt 0:04:37]} Bf8 {[%emt 0:00:22]} 27. Re3 {[%emt 0:14:39]} Ng5 {[%emt 0:02:11]} 28. Rxe8 {[%emt 0:02:25]} Qxe8 {[%emt 0:00:05]} 29. Qf5 {[%emt 0:01:36]} Qe6 {[%emt 0:09:30]} 30. Qxd5 {[%emt 0:01:07]} Qxd5 {[%emt 0:01:59]} 31. Nxd5 {[%emt 0:00:05]} Rc2 {[%emt 0:00:03]} 32. Re1 {[%emt 0:12:11]} Bd6 {[%emt 0:01:29]} 33. f4 {[%emt 0:00:32]} Nf7 {[%emt 0:01:13]} 34. b4 {[%emt 0:01:52]} Rd2 {[%emt 0:01:21]} 35. Nge7+ {[%emt 0:00:36]} Bxe7 {[%emt 0:01:38]} 36. Nxe7+ {[%emt 0:00:15]} Kh7 {[%emt 0:01:12]} 37. Re6 {[%emt 0:05:49]} Rxd4 {[%emt 0:00:51]} 38. Rxa6 {[%emt 0:00:33]} Nd6 {[%emt 0:01:50]} 39. Ra7 {[%emt 0:00:19]} h5 {[%emt 0:01:29]} 40. Kh2 {[%emt 0:15:32]} Rd2 {[%emt 0:02:05]} 41. Rc7 {[%emt 0:03:44]} Ne4 {[%emt 0:07:40]} 42. Nf5 {[%emt 0:02:46]} Nf2 {[%emt 0:01:11]} 43. Kg1 {[%emt 0:01:29]} Ng4 {[%emt 0:01:00]} 44. Kf1 {[%emt 0:00:11]} Kg6 {[%emt 0:01:45]} 45. Ne7+ {[%emt 0:00:15]} Kh6 {[%emt 0:00:14]} 46. Nf5+ {[%emt 0:00:05]} Kg6 {[%emt 0:00:46]} 47. Ne7+ {[%emt 0:00:55]} Kh6 {[%emt 0:00:14]} 48. Nf5+ {[%emt 0:02:36]} Kg6 {[%emt 0:00:03]} 49. Nh4+ {[%emt 0:01:34]} Kh6 {[%emt 0:00:13]} 50. Rc5 {[%emt 0:01:18]} Ra2 {[%emt 0:00:58]} 51. Rxb5 {[%emt 0:01:33]} Rxa3 {[%emt 0:00:03]} 52. Ke2 {[%emt 0:00:47]} g6 {[%emt 0:00:11]} 53. Rb8 {[%emt 0:01:18]} Rxg3 {[%emt 0:01:18]} 54. b5 {[%emt 0:00:07]} Rb3 {[%emt 0:00:16]} 55. b6 {[%emt 0:00:16]} Kg7 {[%emt 0:01:46]} 56. b7 {[%emt 0:00:15]} Nh6 {[%emt 0:00:24]} 57. Kd2 {[%emt 0:00:33]} Nf5 {[%emt 0:01:13]} 58. Nxf5+ {[%emt 0:00:31]} gxf5 {[%emt 0:00:01]} 59. g3 {[%emt 0:00:40]} Rb6 {[%emt 0:00:14]} 60. Kc3 {[%emt 0:00:16]} Rb1 {[%emt 0:01:07]} 61. Kd4 {[%emt 0:00:07]} Rb2 {[%emt 0:00:31]} 62. Kd5 {[%emt 0:00:05]} Rb6 {[%emt 0:00:24]} 63. Kc5 {[%emt 0:00:07]} Rb1 {[%emt 0:00:12]} 64. Kc6 {[%emt 0:00:31]} Rc1+ {[%emt 0:00:05]} 65. Kd6 {[%emt 0:00:08]} Rd1+ {[%emt 0:00:59]} 66. Ke6 {[%emt 0:00:35]} Re1+ {[%emt 0:00:02]} 67. Kxf5 {[%emt 0:01:01]} Rb1 {[%emt 0:00:04]} 68. Ke6 {[%emt 0:00:43]} Re1+ {[%emt 0:00:08]} 69. Kd5 {[%emt 0:00:10]} Rd1+ {[%emt 0:00:02]} 70. Kc4 {[%emt 0:00:13]} Rc1+ {[%emt 0:00:08]} 71. Kd3 {[%emt 0:00:17]} Rb1 {[%emt 0:00:04]} 72. Kc2 {[%emt 0:01:53]} Rb6 {[%emt 0:00:22]} 73. Kc3 {[%emt 0:00:33]} Rb1 {[%emt 0:00:05]} 74. Kc4 {[%emt 0:00:03]} Rc1+ {[%emt 0:00:08]} 75. Kd5 {[%emt 0:00:10]} Rd1+ {[%emt 0:00:03]} 76. Ke6 {[%emt 0:00:32]} Re1+ {[%emt 0:00:03]} 77. Kf5 {[%emt 0:01:03]} Rb1 {[%emt 0:00:04]} 1/2-1/2